bitfinex-derivatives/quotes_ETHF0:USTF0_20250330
["timestamp","ask_amount","ask_price","bid_price","bid_amount"]
[1743318174655,1.0953493,1840.1,1840.0,5.5086]
[1743318174954,2.4781493,1840.1,1840.0,4.8242]
[1743318177261,1.3909493,1840.1,1840.0,5.91146]
[1743318178164,1.3909493,1840.1,1840.0,4.8242]
[1743318180474,1.3909493,1840.1,1840.0,5.91146]
[1743318181867,3.2078,1840.4,1840.3,1.08708]
[1743318182069,2.9166,1840.6,1840.3,3.439]
[1743318182273,4.00352,1840.6,1840.4,1.4109]
[1743318182475,4.00352,1840.6,1840.5,1.3724]
[1743318184974,2.9166,1840.6,1840.5,1.3724]
[1743318185775,4.0035,1840.6,1840.5,1.3724]
[1743318187778,2.9166,1840.6,1840.5,1.3724]
[1743318188178,4.0035,1840.6,1840.5,1.3724]
[1743318189083,1.08696,1840.5,1840.4,0.0081493]
[1743318189376,2.53906,1840.5,1840.4,0.0081493]
[1743318189680,1.08714,1840.2,1840.0,4.9369]
[1743318189881,2.5617,1840.1,1840.0,4.9369]
[1743318190181,4.0138,1840.1,1840.0,3.439]
[1743318190375,1.08726,1840.0,1839.9,51.7099]
[1743318190581,1.08726,1840.0,1839.9,55.1489]
[1743318190881,1.4521,1840.0,1839.9,55.1489]
[1743318191680,2.53936,1840.0,1839.9,55.1489]
[1743318192177,1.4521,1840.0,1839.9,55.1489]
[1743318193280,1.4521,1840.0,1839.9,4.9369]
[1743318194480,2.53936,1840.0,1839.9,4.9369]
[1743318194782,1.4521,1840.0,1839.9,4.9369]
[1743318198281,1.4521,1840.0,1839.9,6.02421]
[1743318198478,0.7320493,1840.1,1839.9,6.02421]
[1743318198479,0.0081493,1840.1,1839.9,6.02421]
[1743318198680,0.7405493,1840.1,1840.0,1.3663]
[1743318198880,2.2224493,1840.1,1840.0,2.1043]
[1743318199288,0.0081493,1840.1,1840.0,3.19156]
[1743318199581,0.0081493,1840.1,1840.0,6.39936]
[1743318199877,5.838,1840.7,1840.0,6.39936]
[1743318199878,3.96474,1840.6,1840.3,1.08705]
[1743318200084,1.4819,1840.6,1840.4,7.33787]
[1743318200287,1.4819,1840.6,1840.5,1.3758]
[1743318201585,2.5688,1840.6,1840.5,1.3758]
[1743318201884,1.4819,1840.6,1840.5,1.3758]
[1743318202987,3.2078,1840.9,1840.5,2.46276]
[1743318203188,4.7021,1840.9,1840.5,2.46276]
[1743318203388,1.0868,1840.8,1840.6,1.3769]
[1743318203688,1.0868,1840.8,1840.7,3.439]
[1743318203886,2.5811,1840.8,1840.7,3.439]
[1743318204886,2.58108,1840.8,1840.7,3.439]
[1743318205586,2.58108,1840.8,1840.7,4.1729]
[1743318205785,2.58108,1840.8,1840.7,5.5498]
[1743318206482,1.4943,1840.8,1840.7,5.5498]
[1743318206679,1.4943,1840.8,1840.7,6.63664]
[1743318207085,3.2078,1840.9,1840.7,6.63664]
[1743318207287,4.6258,1840.9,1840.8,1.4548]
[1743318207887,4.6258,1840.9,1840.8,2.1874]
[1743318208087,5.71252,1840.9,1840.8,2.1874]
[1743318209092,5.71252,1840.9,1840.8,1.4548]
[1743318211486,3.2078,1840.9,1840.8,1.4548]
[1743318212497,4.29452,1840.9,1840.8,1.4548]
[1743318214090,1.08672,1840.9,1840.8,1.4548]
[1743318216397,1.08672,1840.9,1840.8,2.1893]
[1743318216589,2.45012,1840.9,1840.8,2.1893]
[1743318222499,1.08672,1840.9,1840.8,2.1893]
[1743318223297,2.58592,1840.9,1840.8,2.1893]
[1743318229904,1.08672,1840.9,1840.8,2.1893]
[1743318230100,1.08661,1841.1,1840.9,1.08669]
[1743318230303,1.08655,1841.2,1841.0,5.99673]
[1743318230498,1.08655,1841.2,1841.1,2.9499]
[1743318230694,2.47803,1841.3,1841.1,2.9499]
[1743318230897,2.47803,1841.3,1841.2,1.4769]
[1743318232906,1.08661,1841.1,1841.0,3.438]
[1743318234210,1.08661,1841.1,1841.0,4.8046]
[1743318236703,2.50961,1841.1,1841.0,4.8046]
[1743318245620,2.71614,1841.4,1841.0,4.8046]
[1743318245621,3.2078,1841.4,1841.0,4.8046]
[1743318245819,3.2078,1841.4,1841.1,2.57521]
[1743318245820,1.08654,1841.3,1841.1,2.57521]
[1743318246023,1.08654,1841.3,1841.2,2.2199]
[1743318246224,1.08654,1841.3,1841.2,2.9468]
[1743318247219,6.41767,1841.4,1841.2,4.03335]
[1743318247420,6.41767,1841.4,1841.3,1.4886]
[1743318251328,6.41767,1841.4,1841.3,4.9256]
[1743318253327,4.29427,1841.4,1841.3,4.9256]
[1743318258132,5.75347,1841.4,1841.3,4.9256]
[1743318259426,4.29427,1841.4,1841.3,6.01209]
[1743318259626,3.2078,1841.4,1841.3,6.01209]
[1743318260937,4.29423,1841.4,1841.3,4.9256]
[1743318261426,3.2078,1841.4,1841.3,4.9256]
[1743318262026,3.2078,1841.4,1841.3,6.01209]
[1743318263137,3.2078,1841.4,1841.3,4.9256]
[1743318263732,4.29423,1841.4,1841.3,4.9256]
[1743318264132,3.2078,1841.4,1841.3,4.9256]
[1743318265737,3.2078,1841.4,1841.3,6.01209]
[1743318266535,5.79241,1841.5,1841.3,4.9256]
[1743318266734,5.79241,1841.5,1841.4,1.469]
[1743318267135,4.706,1841.5,1841.4,1.469]
[1743318267332,3.2078,1841.5,1841.4,2.55543]
[1743318267736,3.2078,1841.5,1841.4,1.469]
[1743318269141,4.29417,1841.5,1841.4,1.469]
[1743318269842,5.66097,1841.5,1841.4,1.469]
[1743318271036,6.37417,1841.5,1841.4,4.906]
[1743318271534,6.37417,1841.5,1841.4,3.437]
[1743318271733,1.08655,1841.2,1841.1,1.4066]
[1743318271939,1.08655,1841.2,1841.1,3.437]
[1743318272339,3.91035,1841.2,1841.1,4.8436]
[1743318272945,3.91035,1841.2,1841.1,3.437]
[1743318273142,1.08665,1841.1,1841.0,4.8436]
[1743318273339,2.51235,1841.1,1841.0,4.8436]
[1743318273637,2.51235,1841.1,1841.0,1.4066]
[1743318273845,5.72015,1841.1,1841.0,1.4066]
[1743318281251,2.51235,1841.1,1841.0,1.4066]
[1743318281550,5.72015,1841.1,1841.0,1.4066]
[1743318283749,1.08665,1841.1,1841.0,1.4066]
[1743318284750,2.53165,1841.1,1841.0,1.4066]
[1743318286455,1.08672,1840.9,1840.8,0.0081493]
[1743318286640,4.29452,1840.9,1840.8,0.0081493]
[1743318287045,5.75122,1840.9,1840.8,0.0081493]
[1743318290855,23.50389437,1841.7,1841.5,1.08632]
[1743318291152,0.80615402,1841.7,1841.6,8.9492]
[1743318292455,1.0862,1841.8,1841.6,8.9492]
[1743318292659,1.4779,1841.9,1841.7,1.3689]
[1743318292855,1.08619,1841.8,1841.7,1.3689]
[1743318293157,1.08619,1841.8,1841.7,4.5767]
[1743318294553,1.08605,1842.1,1841.8,1.08619]
[1743318294753,1.08608,1842.0,1841.9,8.1534]
[1743318294951,1.08608,1842.0,1841.9,6.7208]
[1743318295153,1.3585,1842.2,1841.9,6.7208]
[1743318295750,1.08608,1842.0,1841.9,6.7208]
[1743318295951,1.3585,1842.2,1841.9,6.7208]
[1743318296356,1.08608,1842.0,1841.9,6.7208]
[1743318296553,1.08608,1842.0,1841.9,6.7228]
[1743318299260,1.08608,1842.0,1841.9,3.2078]
[1743318304665,1.08613,1841.9,1841.8,0.0081493]
[1743318304962,3.23203,1841.9,1841.8,0.0081493]
[1743318307362,3.23203,1841.9,1841.8,1.4851493]
[1743318310366,3.23203,1841.9,1841.8,4.6929493]
[1743318320171,3.23203,1841.9,1841.8,1.4851493]
[1743318325577,3.23203,1841.9,1841.8,0.0081493]
[1743318328674,3.23203,1841.9,1841.8,1.4104493]
[1743318330774,3.23203,1841.9,1841.8,0.0081493]
[1743318335380,3.23203,1841.9,1841.8,1.3800493]
[1743318346085,6.43983,1841.9,1841.8,1.3800493]
[1743318346290,6.43983,1841.9,1841.4,3.8996]
[1743318346291,1.08637,1841.5,1841.4,3.8996]
[1743318346581,2.71549,1841.8,1841.4,4.98601]
[1743318346582,2.1632,1841.8,1841.4,4.98601]
[1743318346784,1.0863,1841.7,1841.6,3.2078]
[1743318349492,1.0863,1841.7,1841.6,4.6271]
[1743318358594,2.4518,1841.7,1841.6,4.6271]
[1743318364002,2.4518,1841.7,1841.6,5.3089]
[1743318364207,2.4518,1841.7,1841.6,1.4193]
[1743318364505,1.08631,1841.6,1841.5,0.0081493]
[1743318364798,2.55431,1841.6,1841.5,3.2159493]
[1743318365004,3.4084493,1841.8,1841.5,3.2159493]
[1743318365005,1.08628,1841.7,1841.5,3.2159493]
[1743318365204,1.08628,1841.7,1841.6,2.8985]
[1743318373707,1.08628,1841.7,1841.6,1.499]
[1743318374008,2.71462,1842.4,1841.6,4.7517]
[1743318374216,2.47145,1842.1,1842.0,3.2078]
[1743318374812,1.08613,1841.9,1841.8,6.6798]
[1743318375009,2.4715,1842.0,1841.8,6.6798]
[1743318375306,2.4715,1842.0,1841.9,0.7527]
[1743318376313,1.0861,1842.0,1841.9,0.7527]
[1743318376606,1.3854,1842.2,1842.0,1.08603]
[1743318376809,1.08596,1842.2,1842.1,3.2078]
[1743318381912,1.79426,1842.2,1842.1,3.2078]
[1743318382723,1.08602,1842.1,1842.0,3.467]
[1743318382908,2.45542,1842.1,1842.0,3.43386053]
[1743318383113,1.3694,1842.1,1842.0,3.43386053]
[1743318383311,2.45542,1842.1,1842.0,3.43386053]
[1743318386515,2.45542,1842.1,1842.0,4.11466053]
[1743318387214,2.45542,1842.1,1842.0,5.57746053]
[1743318388110,1.086,1842.2,1842.0,9.87133053]
[1743318388318,1.05286053,1842.2,1842.1,1.4628]
[1743318389515,1.08602,1842.1,1842.0,7.32246053]
[1743318389717,3.20492,1842.1,1842.0,8.70362106]
[1743318392318,3.20492,1842.1,1842.0,5.49582106]
[1743318392714,3.20492,1842.1,1842.0,8.70362106]
[1743318393220,1.4402,1842.1,1842.0,9.78970106]
[1743318393420,1.08602,1842.1,1842.0,8.70362106]
[1743318394922,1.08602,1842.1,1842.0,8.02282106]
[1743318395116,1.77412,1842.1,1842.0,4.6221]
[1743318395316,1.77412,1842.1,1842.0,3.2078]
[1743318398730,1.08613,1841.9,1841.8,3.9267]
[1743318399222,1.08613,1841.9,1841.8,5.3363]
[1743318399424,2.47343,1841.9,1841.8,5.3363]
[1743318411121,2.47343,1841.9,1841.8,2.1285]
[1743318411317,2.47343,1841.9,1841.8,5.3363]
[1743318414328,2.47343,1841.9,1841.8,3.2078]
[1743318415328,2.47343,1841.9,1841.8,4.5684]
[1743318418329,2.47343,1841.9,1841.8,1.3606]
[1743318418533,2.47343,1841.9,1841.8,4.5684]
[1743318427135,2.47343,1841.9,1841.8,1.3606]
[1743318427541,2.47343,1841.9,1841.8,4.5684]
[1743318434334,2.47343,1841.9,1841.8,1.3606]
[1743318434540,2.47343,1841.9,1841.8,4.5684]
[1743318434740,1.08613,1841.9,1841.8,4.5684]
[1743318436440,1.08613,1841.9,1841.8,1.3606]
[1743318436642,1.08613,1841.9,1841.8,4.5684]
[1743318438039,9.41750411,1842.6,1841.8,4.5684]
[1743318438244,2.54459,1842.2,1842.1,3.2078]
[1743318438545,1.08599,1842.2,1842.1,3.2078]
[1743318438945,1.08599,1842.2,1842.1,4.6009]
[1743318440544,2.51509,1842.2,1842.1,4.6009]
[1743318443246,1.08608,1842.0,1841.9,7.3746]
[1743318444344,1.08608,1842.0,1841.9,4.1668]
[1743318444650,1.08608,1842.0,1841.9,7.3746]
[1743318444848,1.08608,1842.0,1841.9,3.9356]
[1743318445546,1.08608,1842.0,1841.9,5.3122]
[1743318446949,1.494,1842.1,1841.9,6.39829]
[1743318447152,3.2078,1842.5,1842.1,1.08597]
[1743318447349,3.2078,1842.5,1842.2,4.6905]
[1743318447350,1.0859,1842.3,1842.2,4.6905]
[1743318452760,1.4075,1842.6,1842.2,4.6905]
[1743318452761,1.08581,1842.5,1842.2,5.77643]
[1743318453055,1.08581,1842.5,1842.2,5.77642]
[1743318453851,1.08581,1842.5,1842.4,3.2078]
[1743318454047,1.08581,1842.5,1842.4,6.6468]
[1743318455354,1.08581,1842.5,1842.4,3.2078]
[1743318455645,1.08581,1842.5,1842.4,6.6478]
[1743318455851,2.51761,1842.5,1842.4,6.6478]
[1743318456645,2.51761,1842.5,1842.4,3.2078]
[1743318458247,1.08584,1842.4,1842.3,3.44]
[1743318458448,2.55884,1842.4,1842.3,3.44]
[1743318458842,2.55884,1842.4,1842.2,4.6905]
[1743318459047,2.5589,1842.3,1842.2,7.3802]
[1743318462550,2.5589,1842.3,1842.2,6.6468]
[1743318467662,2.5589,1842.3,1842.2,7.3756]
[1743318468563,1.0859,1842.3,1842.2,7.3756]
[1743318471267,1.0859,1842.3,1842.2,4.1678]
[1743318471766,1.0859,1842.3,1842.2,5.5315]
[1743318477666,2.58398,1842.4,1842.2,5.5315]
[1743318477970,2.58398,1842.4,1842.3,1.4177]
[1743318478165,2.58398,1842.4,1842.3,2.126]
[1743318478369,1.08588,1842.4,1842.3,2.126]
[1743318480568,1.08588,1842.4,1842.3,5.3338]
[1743318487085,1.08588,1842.4,1842.3,8.7718]
[1743318487276,1.08588,1842.4,1842.3,6.6458]
[1743318487880,1.08588,1842.4,1842.3,3.438]
[1743318488779,1.08588,1842.4,1842.3,4.9332]
[1743318489382,1.08588,1842.4,1842.3,1.4952]
[1743318493480,1.08588,1842.4,1842.3,4.703]
[1743318493680,1.08588,1842.4,1842.3,5.4108]
[1743318497488,1.4484,1842.6,1842.3,5.4108]
[1743318497791,2.53416,1842.6,1842.4,4.8345]
[1743318497990,2.53416,1842.6,1842.5,2.1334]
[1743318499690,1.08576,1842.6,1842.5,5.3412]
[1743318502283,1.08571,1842.7,1842.5,6.42697]
[1743318502485,1.3905,1842.8,1842.5,3.9437]
[1743318502688,1.08572,1842.6,1842.5,5.3181]
[1743318502891,1.08572,1842.6,1842.5,4.6725]
[1743318503788,1.08578,1842.5,1842.4,3.4451493]
[1743318503995,3.16808,1842.5,1842.4,3.4451493]
[1743318505492,3.16808,1842.5,1842.4,0.0081493]
[1743318513808,1.08578,1842.5,1842.4,0.7218493]
[1743318514111,1.08578,1842.5,1842.4,4.8672493]
[1743318515404,2.50308,1842.5,1842.4,4.8672493]
[1743318517402,2.50308,1842.5,1842.4,6.3135493]
[1743318520417,2.50308,1842.5,1842.4,1.4544493]
[1743318520614,3.18618,1842.5,1842.4,1.4544493]
[1743318520919,3.18618,1842.5,1842.4,0.0081493]
[1743318524121,1.08596,1842.2,1842.1,3.2078]
[1743318524317,13.9598,1842.5,1841.8,59.0055]
[1743318524318,1.08613,1841.9,1841.8,59.0055]
[1743318524515,1.08613,1841.9,1841.8,55.5685]
[1743318525823,2.46763,1841.9,1841.8,55.5685]
[1743318530533,3.21883,1841.9,1841.8,55.5685]
[1743318530726,3.21883,1841.9,1841.8,5.4095]
[1743318532327,3.21883,1841.9,1841.8,2.2017]
[1743318532525,3.21883,1841.9,1841.8,5.4095]
[1743318534927,3.21883,1841.9,1841.8,2.2017]
[1743318535133,3.21883,1841.9,1841.8,5.4095]
[1743318535524,3.21883,1841.9,1841.8,4.6681]
[1743318537728,1.08613,1841.9,1841.8,4.6681]
[1743318538927,3.27873,1841.9,1841.8,4.6681]
[1743318540323,1.08613,1841.9,1841.8,4.6681]
[1743318540723,2.57213,1841.9,1841.8,4.6681]
[1743318540936,3.97533,1841.9,1841.8,4.6681]
[1743318541638,1.08619,1841.8,1841.7,0.0081493]
[1743318541938,2.58339,1841.8,1841.7,0.0081493]
[1743318543331,2.58339,1841.8,1841.7,1.4415493]
[1743318545038,2.58339,1841.8,1841.7,0.0081493]
[1743318552347,7.205,1841.8,1841.2,3.2078]
[1743318552541,1.08649,1841.3,1841.2,5.3076]
[1743318552738,1.08655,1841.2,1841.1,0.6813]
[1743318552943,1.08655,1841.2,1840.9,1.4164]
[1743318552944,2.1163,1841.2,1840.9,1.4164]
[1743318553147,1.08667,1841.0,1840.9,1.4164]
[1743318553444,1.08667,1841.0,1840.9,2.1444]
[1743318554748,2.54937,1841.0,1840.9,2.1444]
[1743318555740,1.08667,1841.0,1840.9,2.1444]
[1743318562348,2.47867,1841.0,1840.9,2.1444]
[1743318566347,3.18097,1841.0,1840.9,2.1444]
[1743318569354,1.08667,1841.0,1840.9,2.1444]
[1743318569553,1.0947993,1841.1,1840.9,2.1444]
[1743318569753,1.0947993,1841.1,1841.0,8.7782]
[1743318572557,1.0947993,1841.1,1841.0,5.5704]
[1743318572858,1.8458993,1841.1,1841.0,5.5704]
[1743318576862,1.8458993,1841.1,1841.0,2.1304]
[1743318580761,1.8458993,1841.1,1841.0,1.3967]
[1743318580959,1.08667,1841.0,1840.9,0.728]
[1743318581156,2.45977,1841.0,1840.9,2.8606]
[1743318584364,2.45977,1841.0,1840.9,6.0684]
[1743318586564,2.45977,1841.0,1840.9,2.8606]
[1743318586766,2.45977,1841.0,1840.9,6.0684]
[1743318588265,1.08667,1841.0,1840.9,6.0684]
[1743318590967,5.92362,1841.6,1841.0,1.08667]
[1743318591264,1.08655,1841.2,1841.1,8.0957]
[1743318593068,1.0946793,1841.3,1841.1,9.18231]
[1743318593370,1.0946793,1841.3,1841.2,2.8748]
[1743318603678,1.0946793,1841.3,1841.2,6.0826]
[1743318604581,0.0081493,1841.3,1841.2,6.0826]
[1743318604878,1.0946393,1841.3,1841.2,6.0826]
[1743318606471,0.0081493,1841.3,1841.2,7.16915]
[1743318606676,1.08633,1841.6,1841.4,1.08641]
[1743318606976,1.08633,1841.6,1841.5,5.3604]
[1743318607176,1.08633,1841.6,1841.5,6.1038]
[1743318607380,2.51743,1841.6,1841.5,6.1038]
[1743318609180,1.4311,1841.6,1841.5,7.19017]
[1743318609382,1.08627,1841.7,1841.5,7.19017]
[1743318609673,1.08619,1841.9,1841.7,1.08623]
[1743318609878,1.08619,1841.9,1841.8,2.859]
[1743318610078,2.51449,1841.9,1841.8,2.859]
[1743318611974,1.4283,1841.9,1841.8,2.859]
[1743318612174,1.08611,1842.0,1841.8,3.94517]
[1743318612374,1.08611,1842.0,1841.9,4.6953]
[1743318612783,1.08604,1842.1,1841.9,5.78143]
[1743318613084,2.45539,1842.2,1842.0,1.4875]
[1743318613281,2.42225053,1842.2,1842.0,4.9265]
[1743318613483,1.33626053,1842.2,1842.1,1.3773]
[1743318613674,2.42222053,1842.2,1842.1,2.8648]
[1743318613874,1.33626053,1842.2,1842.1,2.8648]
[1743318614980,2.42222053,1842.2,1842.1,2.8648]
[1743318616075,1.33626053,1842.2,1842.1,2.8648]
[1743318616277,2.42222053,1842.2,1842.1,2.8648]
[1743318617685,1.33626053,1842.2,1842.1,2.8648]
[1743318620085,2.42222053,1842.2,1842.1,2.8648]
[1743318623891,2.42222053,1842.2,1842.1,6.0726]
[1743318626089,2.42222053,1842.2,1842.1,7.15862]
[1743318626090,1.33626053,1842.2,1842.1,7.15862]
[1743318626785,3.437,1842.9,1842.4,1.08584]
[1743318626983,2.1448,1842.6,1842.5,2.53718]
[1743318627189,3.23052,1842.6,1842.5,2.8832]
[1743318627892,1.08564,1842.8,1842.6,1.08572]
[1743318628191,1.08564,1842.8,1842.6,9.22272]
[1743318628389,1.3809,1842.7,1842.6,9.22272]
[1743318628692,1.3809,1842.7,1842.6,6.6448]
[1743318629192,2.46656,1842.7,1842.6,6.6448]
[1743318629990,1.3809,1842.7,1842.6,6.6448]
[1743318631393,2.46656,1842.7,1842.6,6.6448]
[1743318637390,1.3809,1842.7,1842.6,6.6448]
[1743318637597,2.46656,1842.7,1842.6,6.6448]
[1743318640092,1.3809,1842.7,1842.6,6.6448]
[1743318640600,2.46656,1842.7,1842.6,7.3324]
[1743318641098,2.46656,1842.7,1842.6,4.1246]
[1743318641695,2.46656,1842.7,1842.6,7.3324]
[1743318642696,2.46656,1842.7,1842.6,8.0111]
[1743318644402,2.46656,1842.7,1842.6,6.6448]
[1743318648299,2.46656,1842.7,1842.6,3.437]
[1743318648601,2.46656,1842.7,1842.6,6.6448]
[1743318650605,2.46656,1842.7,1842.6,3.437]
[1743318650904,2.46656,1842.7,1842.6,6.6448]
[1743318652000,2.46656,1842.7,1842.6,3.2078]
[1743318652201,1.08578,1842.5,1842.4,3.2078]
[1743318652504,1.08584,1842.4,1842.3,3.436]
[1743318652706,2.52834,1842.4,1842.3,3.436]
[1743318652906,2.52834,1842.4,1842.3,8.0085]
[1743318655110,1.4425,1842.4,1842.3,8.0085]
[1743318655414,1.4959,1842.6,1842.3,8.0085]
[1743318655605,1.0858,1842.5,1842.4,1.5056]
[1743318656012,2.4785,1842.5,1842.4,1.5056]
[1743318657718,1.0858,1842.5,1842.4,1.5056]
[1743318659619,1.0858,1842.5,1842.4,4.7134]
[1743318663922,1.08573,1842.6,1842.4,5.79924]
[1743318664227,1.08568,1842.7,1842.5,2.8644]
[1743318664530,1.08568,1842.7,1842.6,1.4337]
[1743318666121,1.08568,1842.7,1842.6,4.6415]
[1743318666321,1.08568,1842.7,1842.6,8.0775]
[1743318668229,3.911,1843.0,1842.7,1.08566]
[1743318668528,3.911,1843.0,1842.6,8.0775]
[1743318668529,1.08557,1842.9,1842.8,2.8684]
[1743318668729,2.45877,1842.9,1842.8,2.8684]
[1743318676927,2.45877,1842.9,1842.8,1.4197]
[1743318677127,1.0856,1842.8,1842.7,3.436]
[1743318677333,1.0856,1842.8,1842.7,4.8769]
[1743318677334,3.2743,1842.8,1842.7,4.8769]
[1743318677534,3.2743,1842.8,1842.7,1.4409]
[1743318677833,1.08566,1842.7,1842.6,6.6438]
[1743318678135,1.08572,1842.6,1842.5,3.436]
[1743318678633,2.56402,1842.6,1842.5,3.436]
[1743318678836,1.08578,1842.5,1842.4,4.6487]
[1743318679030,3.17668,1842.5,1842.4,4.6487]
[1743318681836,3.17668,1842.5,1842.4,3.2078]
[1743318682232,1.08584,1842.4,1842.3,4.916]
[1743318682431,2.56164,1842.4,1842.3,4.916]
[1743318683033,3.30984,1842.4,1842.3,4.916]
[1743318684433,3.30984,1842.4,1842.3,4.6878]
[1743318685029,3.30984,1842.4,1842.3,3.2078]
[1743318689736,1.0859,1842.3,1842.2,1.3886]
[1743318690040,2.4649,1842.3,1842.2,1.3886]
[1743318692939,1.08596,1842.2,1842.1,3.436]
[1743318693241,3.19136,1842.2,1842.1,4.8933]
[1743318697641,3.19136,1842.2,1842.1,1.4573]
[1743318699137,2.47806,1842.2,1842.1,1.4573]
[1743318702139,2.47806,1842.2,1842.1,4.6651]
[1743318705138,2.47806,1842.2,1842.1,1.4573]
[1743318705344,2.47806,1842.2,1842.1,4.6651]
[1743318706444,2.47806,1842.2,1842.1,1.4573]
[1743318706852,2.47806,1842.2,1842.1,4.6651]
[1743318711149,2.47806,1842.2,1842.1,1.4573]
[1743318711452,2.47806,1842.2,1842.1,4.6651]
[1743318712558,2.47806,1842.2,1842.1,1.4573]
[1743318712769,2.47806,1842.2,1842.1,4.6651]
[1743318717771,2.71506,1842.1,1841.8,0.0081493]
[1743318717962,1.08613,1841.9,1841.8,2.07540983]
[1743318718570,2.56953,1841.9,1841.8,2.07540983]
[1743318718869,1.08619,1841.8,1841.7,3.2078]
[1743318719067,2.56959,1841.8,1841.7,3.2159493]
[1743318719368,5.06959,1841.8,1841.7,0.0081493]
[1743318719558,2.56959,1841.8,1841.7,0.0081493]
[1743318721268,5.06959,1841.8,1841.7,0.0081493]
[1743318728670,8.27739,1841.8,1841.7,0.0081493]
[1743318742476,9.21539,1841.8,1841.7,0.0081493]
[1743318742667,5.77739,1841.8,1841.7,0.0081493]
[1743318742879,4.29399,1841.8,1841.7,0.0081493]
[1743318743774,4.29399,1841.8,1841.7,1.3832493]
[1743318746875,7.73199,1841.8,1841.7,0.0081493]
[1743318749986,7.73199,1841.8,1841.7,1.3664493]
[1743318753190,7.73199,1841.8,1841.7,0.0081493]
[1743318753893,7.73199,1841.8,1841.7,1.4421493]
[1743318755087,4.29399,1841.8,1841.7,1.4421493]
[1743318756595,5.75889,1841.8,1841.7,1.4421493]
[1743318757993,4.29399,1841.8,1841.7,1.4421493]
[1743318759494,1.08619,1841.8,1841.7,1.4421493]
[1743318759793,4.29399,1841.8,1841.7,1.4421493]
[1743318768699,1.08619,1841.8,1841.7,1.4421493]
[1743318769101,1.08619,1841.9,1841.7,4.8801493]
[1743318769403,1.08619,1841.9,1841.8,1.4223]
[1743318770200,1.08619,1841.9,1841.8,3.9223]
[1743318770798,1.0942493,1842.0,1841.8,3.9223]
[1743318770999,1.0942493,1842.0,1841.9,2.9226]
[1743318775802,0.0081493,1842.0,1841.9,4.00873]
[1743318776002,0.0081493,1842.0,1841.9,9.71653]
[1743318778210,1.08594,1842.3,1842.0,1.08605]
[1743318778410,1.08586,1842.4,1842.1,7.73081]
[1743318778710,1.08586,1842.4,1842.2,2.9576]
[1743318778909,1.08586,1842.4,1842.3,1.4918]
[1743318779503,1.08582,1842.5,1842.3,1.4918]
[1743318779709,1.3584,1842.6,1842.3,1.4918]
[1743318780008,1.08584,1842.4,1842.3,1.4918]
[1743318780508,1.08582,1842.5,1842.3,1.4918]
[1743318783810,2.50104,1842.4,1842.3,1.4918]
[1743318784109,1.4152,1842.4,1842.3,1.4918]
[1743318784811,2.50104,1842.4,1842.3,1.4918]
[1743318786308,1.4152,1842.4,1842.3,1.4918]
[1743318787715,2.50104,1842.4,1842.3,1.4918]
[1743318788309,1.4152,1842.4,1842.3,1.4918]
[1743318788915,2.50104,1842.4,1842.3,1.4918]
[1743318790422,1.4152,1842.4,1842.3,1.4918]
[1743318792321,2.1212,1842.4,1842.3,1.4918]
[1743318793924,3.20704,1842.4,1842.3,1.4918]
[1743318794227,3.20704,1842.4,1842.2,4.6736]
[1743318794417,1.4378,1842.3,1842.2,6.0521]
[1743318795616,1.4378,1842.3,1842.2,2.8443]
[1743318796327,1.4378,1842.3,1842.2,3.93026]
[1743318797418,1.08582,1842.5,1842.2,3.93026]
[1743318797619,1.4188,1842.4,1842.3,1.5018]
[1743318800327,2.50464,1842.4,1842.3,1.5018]
[1743318801325,1.4188,1842.4,1842.3,1.5018]
[1743318804827,2.1026,1842.4,1842.3,1.5018]
[1743318805530,1.4188,1842.4,1842.3,1.5018]
[1743318807733,2.50464,1842.4,1842.3,1.5018]
[1743318808327,1.4188,1842.4,1842.3,1.5018]
[1743318812735,2.50464,1842.4,1842.3,1.5018]
[1743318814236,1.4188,1842.4,1842.3,1.5018]
[1743318828862,2.50464,1842.4,1842.3,1.5018]
[1743318829061,1.4188,1842.4,1842.3,1.5018]
[1743318830062,1.0859,1842.3,1842.2,3.2078]
[1743318830258,2.5244,1842.3,1842.2,3.2078]
[1743318830963,1.4385,1842.3,1842.2,3.2078]
[1743318831465,0.6953,1842.3,1842.2,5.9964]
[1743318831757,2.1201,1842.3,1842.2,5.9964]
[1743318832463,0.7432,1842.6,1842.2,5.9964]
[1743318832657,1.4248,1842.5,1842.3,4.89]
[1743318832865,2.5106,1842.5,1842.4,1.454]
[1743318837465,2.5106,1842.5,1842.3,3.436]
[1743318837667,2.1102,1842.4,1842.3,4.814]
[1743318840272,3.19604,1842.4,1842.3,4.814]
[1743318840573,3.19604,1842.4,1842.3,3.436]
[1743318841467,3.19604,1842.4,1842.3,4.9348]
[1743318841668,3.19604,1842.4,1842.3,3.436]
[1743318841863,2.1102,1842.4,1842.1,3.2078]
[1743318842070,5.2665,1842.3,1842.0,2.1995]
[1743318842373,1.08602,1842.1,1842.0,5.6355]
[1743318842964,1.3793,1842.1,1842.0,5.6355]
[1743318847073,4.97313,1842.3,1842.0,6.72158]
[1743318847276,1.08586,1842.4,1842.1,3.32731]
[1743318847578,2.1397,1842.5,1842.2,1.501]
[1743318847770,1.0859,1842.3,1842.2,1.501]
[1743318848279,2.5423,1842.3,1842.2,1.501]
[1743318849478,1.4564,1842.3,1842.2,1.501]
[1743318853483,2.5423,1842.3,1842.2,1.501]
[1743318854174,3.2226,1842.3,1842.2,1.501]